bitfinex/quotes_SOLUSD_20250811
["timestamp","ask_amount","ask_price","bid_price","bid_amount"]
[1754925087079,30.0,178.17,178.16,14.56240167]
[1754925087474,0.03,178.18,178.16,20.17532571]
[1754925087772,0.03,178.18,178.17,14.56240167]
[1754925087977,0.03,178.18,178.17,56.00240167]
[1754925088174,0.03,178.18,178.11,5.61450788]
[1754925088393,0.03,178.18,178.16,14.56240167]
[1754925088602,0.67,178.17,178.16,14.56240167]
[1754925090888,0.03,178.18,178.16,14.56240167]
[1754925091203,0.7,178.18,178.17,14.56240167]
[1754925092491,0.7,178.18,178.09,41.10621557]
[1754925092697,0.67,178.17,178.1,41.36]
[1754925092914,0.03,178.18,178.1,41.36]
[1754925093217,0.67,178.17,178.15,14.56240167]
[1754925093499,0.67,178.16,178.15,14.56240167]
[1754925095702,0.67,178.16,178.13,41.34]
[1754925095893,0.67,178.16,178.15,14.56240167]
[1754925096092,5.61266189,178.17,178.15,14.56240167]
[1754925096298,0.67,178.17,178.16,14.56240167]
[1754925096492,30.67,178.17,178.16,14.56240167]
[1754925097001,30.0,178.17,178.16,14.56240167]
[1754925097206,0.03,178.18,178.16,14.56240167]
[1754925097405,0.03,178.18,178.17,14.56240167]
[1754925097610,0.03,178.18,178.17,55.84240167]
[1754925098106,0.7,178.18,178.15,14.56240167]
[1754925098309,20.20482556,178.18,178.14,14.56240167]
[1754925098489,20.20482556,178.18,178.07,14.09898621]
[1754925098490,14.56240167,178.15,178.1,55.86240167]
[1754925098809,0.67,178.14,178.1,55.86240167]
[1754925099314,0.67,178.14,178.11,14.56240167]
[1754925099606,0.67,178.14,178.12,14.56240167]
[1754925099794,0.67,178.14,178.1,46.91470833]
[1754925099999,0.67,178.16,178.12,14.56240167]
[1754925100182,0.67,178.16,178.1,46.91470833]
[1754925100183,0.67,178.15,178.1,46.91470833]
[1754925100379,15.24544146,178.17,178.1,41.3]
[1754925100593,9.63273526,178.14,178.1,9.63273526]
[1754925100786,0.67,178.13,178.09,50.93273526]
[1754925100996,0.67,178.12,178.09,50.93273526]
[1754925101308,140.0,178.11,178.1,9.63273526]
[1754925101601,140.0,178.11,178.1,15.24755839]
[1754925101907,0.7,178.18,178.1,15.24755839]
[1754925102207,0.7,178.18,178.15,14.52940146]
[1754925102401,30.0,178.16,178.15,14.52940146]
[1754925102981,30.0,178.16,178.15,55.80940146]
[1754925103510,30.0,178.16,178.15,76.52886429]
[1754925103828,0.03,178.18,178.17,26.0]
[1754925104137,0.03,178.18,178.17,40.52940146]
[1754925104293,0.03,178.18,178.17,55.63561703]
[1754925104719,0.03,178.18,178.15,5.61324726]
[1754925105019,0.67,178.17,178.15,5.61324726]
[1754925105233,0.67,178.17,178.14,41.28]
[1754925105531,0.67,178.17,178.14,55.80940146]
[1754925105845,0.67,178.16,178.14,55.80940146]
[1754925106042,3.7611731,178.18,178.15,14.52940146]
[1754925106208,0.03,178.18,178.16,14.52940146]
[1754925106540,0.67,178.17,178.13,14.52940146]
[1754925106706,18.26057456,178.17,178.12,81.80940146]
[1754925106898,4.4011731,178.16,178.13,14.52940146]
[1754925107125,0.67,178.15,178.13,14.52940146]
[1754925107529,4.4011731,178.15,178.13,14.52940146]
[1754925107855,3.7311731,178.17,178.14,14.52940146]
[1754925108040,3.7311731,178.16,178.13,5.61387486]
[1754925108234,3.7311731,178.15,178.14,14.52940146]
[1754925108445,143.7311731,178.15,178.14,14.52940146]
[1754925110375,143.7311731,178.15,178.14,5.61356236]
[1754925110537,0.03,178.18,178.14,20.14296382]
[1754925110737,3.74036958,178.17,178.14,5.61356236]
[1754925110974,3.74036958,178.16,178.14,5.61356236]
[1754925111262,0.03,178.18,178.12,46.87397589]
[1754925111467,3.74041987,178.17,178.12,46.87397589]
[1754925111675,3.74041987,178.16,178.12,46.87397589]
[1754925111970,0.03,178.18,178.15,14.52940146]
[1754925112147,0.03,178.18,178.17,14.52940146]
[1754925112343,33.77116431,178.18,178.17,14.52940146]
[1754925112941,3.77116431,178.18,178.17,14.52940146]
[1754925113250,0.03,178.18,178.17,55.68940146]
[1754925113987,0.03,178.18,178.17,61.30201862]
[1754925116164,0.03,178.18,178.17,76.40823419]
[1754925116640,0.03,178.2,178.19,41.10621557]
[1754925116850,0.03,178.2,178.19,97.29681575]
[1754925117359,0.03,178.2,178.19,96.73561703]
[1754925118070,0.03,178.2,178.19,102.34760423]
[1754925118968,10.0,178.1,178.07,0.06]
[1754925119174,10.6,178.1,178.07,0.06]
[1754925119353,10.0,178.08,178.07,0.06]
[1754925119551,29.24499435,178.08,178.07,0.02]
[1754925119765,36.0,178.06,177.99,42.36]
[1754925119975,54.83141558,178.06,177.98,0.06]
[1754925120161,60.92750004,178.06,177.98,0.06]
[1754925120363,10.0,178.0,177.98,0.06]
[1754925120682,24.52940146,177.99,177.98,0.06]
[1754925120887,25.00940146,177.99,177.98,0.06]
[1754925121267,28.75003055,177.99,177.98,0.06]
[1754925121873,10.48,177.99,177.98,0.06]
[1754925122094,10.0,177.99,177.98,0.06]
[1754925122266,24.52940146,177.99,177.98,0.06]
[1754925122881,10.0,177.99,177.98,0.06]
[1754925124002,10.0,177.99,177.98,15.26940146]
[1754925124173,10.0,178.0,177.98,20.88801029]
[1754925124490,10.0,178.02,177.99,15.20940146]
[1754925124806,10.0,178.03,178.01,14.52940146]
[1754925124966,10.0,178.03,177.87,0.06]
[1754925124967,71.55737549,178.02,177.87,0.06]
[1754925125172,10.0,177.92,177.87,14.58940146]
[1754925125673,25.47063167,177.92,177.87,0.06]
[1754925126087,51.47063167,177.92,177.87,0.06]
[1754925126482,54.28847254,177.92,177.87,0.06]
[1754925130276,53.90847254,177.92,177.87,0.06]
[1754925130489,10.56123021,177.92,177.89,14.58940146]
[1754925130798,10.0,177.93,177.91,0.74]
[1754925131001,10.0,177.95,177.91,0.74]
[1754925131200,10.0,177.95,177.94,14.52940146]
[1754925131566,10.0,177.97,177.94,15.20940146]
[1754925131770,10.0,177.99,177.96,14.52940146]
[1754925131971,10.56123021,178.0,177.97,15.20940146]
[1754925132180,10.0,178.0,177.99,5.61829316]
[1754925132389,10.0,178.0,177.99,20.82769462]
[1754925132596,10.0,178.01,177.99,20.82769462]
[1754925132785,10.0,178.01,178.0,14.52940146]
[1754925132979,10.0,177.99,177.96,5.61924027]
[1754925133291,0.56123021,177.98,177.96,5.61924027]
[1754925133499,24.52940146,177.99,177.96,5.61924027]
[1754925133869,10.0,177.99,177.96,6.29924027]
[1754925134069,10.56123021,177.99,177.96,6.29924027]
[1754925134298,10.0,177.99,177.96,20.82864173]
[1754925134478,10.56123021,178.0,177.96,20.82864173]
[1754925134671,10.0,177.99,177.96,20.82864173]
[1754925134872,10.0,177.99,177.96,6.29924027]
[1754925135567,10.0,177.99,177.96,5.61924027]
[1754925135768,10.0,177.96,177.94,43.78]
[1754925136275,10.0,177.96,177.95,15.20940146]
[1754925136475,10.0,177.97,177.95,15.20940146]
[1754925136700,10.0,177.99,177.96,15.20940146]
[1754925136887,10.0,178.01,177.98,14.52940146]
[1754925137100,10.0,178.01,178.0,14.52940146]
[1754925137294,10.0,178.01,178.0,58.96940146]
[1754925137799,10.0,178.04,178.0,58.96940146]
[1754925137976,10.0,178.04,178.03,14.52940146]
[1754925138180,10.0,178.04,178.01,0.68]
[1754925138429,10.0,178.05,178.02,20.82674782]
[1754925138614,10.0,178.05,178.03,14.52940146]
[1754925138906,10.0,178.05,178.04,14.52940146]
[1754925139203,10.0,178.05,178.03,14.52940146]
[1754925139702,10.0,178.07,178.04,15.20940146]
[1754925139914,10.0,178.06,178.05,58.88940146]
[1754925140078,10.0,178.07,178.05,44.36]
[1754925140278,10.0,178.04,178.03,14.52940146]
[1754925140501,10.0,178.04,178.03,43.66]
[1754925140706,40.57684724,178.04,178.03,43.66]
[1754925140881,10.0,177.97,177.93,0.68]
[1754925141205,15.10621557,178.03,177.91,5.68080049]
[1754925141206,10.0,177.93,177.91,5.68080049]
[1754925141400,10.56123021,177.93,177.92,66.23102259]
[1754925141582,10.0,177.93,177.92,49.36050359]
[1754925141787,10.0,177.94,177.92,63.88990505]
[1754925141989,10.0,177.93,177.92,49.36050359]
[1754925142210,10.0,177.93,177.92,63.88990505]
[1754925142410,10.0,177.94,177.92,20.20990505]
[1754925142604,10.0,177.94,177.93,43.64]
[1754925143021,10.0,177.95,177.93,58.16940146]
[1754925143217,10.0,177.95,177.94,14.52940146]
[1754925144124,10.0,177.95,177.93,58.16940146]
[1754925144332,10.0,177.95,177.94,14.52940146]
[1754925144500,10.0,177.95,177.94,20.14927332]
[1754925145104,10.0,177.95,177.94,20.82927332]
[1754925145725,10.0,177.95,177.94,6.29987186]
[1754925146225,10.0,177.94,177.93,43.64]
[1754925146406,10.0,177.94,177.93,49.26018771]
[1754925148035,10.0,177.94,177.93,43.64]
[1754925149131,10.0,177.93,177.92,0.06]
[1754925149306,10.0,177.93,177.92,43.5]
[1754925149840,25.09063167,177.93,177.92,43.48]
[1754925150837,10.0,177.93,177.92,49.10050359]
[1754925151307,10.0,177.94,177.92,64.33990505]
[1754925151510,10.0,177.93,177.92,49.81050359]
[1754925152033,10.0,177.93,177.92,64.33990505]
[1754925152719,10.0,177.93,177.92,43.48]
[1754925153710,10.0,177.93,177.92,49.10050359]
[1754925154119,10.0,177.93,177.92,43.48]
[1754925154507,25.09063167,177.93,177.92,0.06]
[1754925154706,25.09063167,177.93,177.92,43.38]
[1754925155018,10.0,177.93,177.92,43.38]
[1754925155215,10.0,177.93,177.92,43.34]
[1754925155615,24.52940146,177.93,177.92,43.34]
[1754925155812,10.0,177.93,177.92,43.34]
[1754925156410,10.0,177.93,177.92,48.96050359]
[1754925156622,10.0,177.94,177.92,64.19990505]
[1754925156817,10.0,177.95,177.93,14.52940146]
[1754925157025,10.0,177.95,177.94,43.24]
[1754925157224,10.0,177.95,177.94,43.95]
[1754925157718,10.0,177.95,177.94,58.47940146]
[1754925157918,10.0,177.96,177.94,58.47940146]
[1754925158117,10.0,177.95,177.94,43.24]
[1754925158628,10.0,177.94,177.92,19.73176258]
[1754925158840,10.0,177.94,177.93,48.82018771]
[1754925159239,10.0,177.94,177.93,43.2]
[1754925159751,10.0,177.94,177.93,48.82018771]
[1754925159915,10.03,177.95,177.93,64.05958917]
[1754925160118,10.03,177.95,177.94,14.52940146]
[1754925160349,10.03,177.95,177.94,15.23940146]
[1754925160642,10.0,177.94,177.93,63.34958917]
[1754925161013,10.0,177.94,177.93,43.2]
[1754925161742,10.0,177.94,177.93,48.82018771]
[1754925161917,10.0,177.94,177.93,64.05958917]
[1754925162118,10.0,177.94,177.93,49.53018771]
[1754925162919,0.03,177.95,177.93,64.05958917]
[1754925163122,10.0,177.94,177.93,63.34958917]
[1754925163336,13.73319064,177.94,177.93,48.76018771]
[1754925163942,13.73319064,177.94,177.93,43.14]
[1754925164148,13.73319064,177.94,177.92,5.68040221]
[1754925164344,10.56123021,177.94,177.93,43.06]
[1754925164527,17.88497358,177.94,177.93,43.06]
[1754925165044,13.73491895,177.94,177.93,49.39018771]
[1754925165247,3.73491895,177.94,177.93,48.68018771]
[1754925165455,13.73491895,177.94,177.93,48.68018771]
[1754925168862,13.73491895,177.94,177.93,43.06]
[1754925169146,17.884279,177.94,177.93,43.06]
[1754925169346,13.73491895,177.94,177.93,48.68018771]
[1754925169641,13.73491895,177.94,177.93,6.33018771]
[1754925169845,13.73491895,177.94,177.93,42.9]
[1754925170755,10.0,177.93,177.92,5.68050359]
[1754925171050,3.73491895,177.93,177.92,48.54050359]
[1754925171251,3.73491895,177.93,177.92,49.25050359]
[1754925171546,13.73491895,177.93,177.92,49.25050359]
[1754925172121,3.73491895,177.93,177.92,58.90566855]
[1754925172338,3.73491895,177.94,177.92,58.90566855]
[1754925172530,0.03,177.95,177.93,0.71]
[1754925172732,0.03,177.95,177.94,52.47516496]
[1754925172928,0.03,177.95,177.94,48.43987186]
[1754925173152,0.03,177.95,177.94,49.14987186]
[1754925173455,0.03,177.95,177.94,58.80503682]
[1754925176460,0.03,177.95,177.94,58.30503682]
[1754925178361,1e-08,177.95,177.94,58.30503682]
[1754925180663,1e-08,177.95,177.94,5.61987186]
[1754925180854,10.00000001,177.95,177.94,5.61987186]
[1754925181064,10.00000001,177.95,177.94,48.21987186]
[1754925181252,10.00000001,177.95,177.94,58.54503682]
[1754925181838,1e-08,177.95,177.94,58.54503682]
[1754925184651,1e-08,177.95,177.94,42.52]
[1754925184851,1e-08,177.95,177.94,10.32516496]
[1754925185056,1e-08,177.95,177.94,52.84516496]
[1754925186781,1e-08,177.95,177.94,58.46503682]
[1754925187073,1e-08,177.97,177.96,35.65516496]
[1754925187265,1e-08,177.97,177.96,78.19516496]
[1754925187456,1e-08,177.97,177.96,78.86516496]
[1754925187871,1e-08,177.97,177.96,88.52032992]
[1754925188489,1e-08,177.99,177.96,88.52032992]
[1754925188774,1e-08,177.99,177.98,9.65516496]
[1754925188977,1e-08,177.99,177.98,57.79377379]
[1754925189791,1e-08,177.99,177.98,58.46377379]
[1754925190152,1e-08,178.01,177.98,58.46377379]
[1754925190346,1e-08,178.01,178.0,9.65516496]
[1754925190674,1e-08,178.01,178.0,52.13516496]
[1754925190857,1e-08,178.01,178.0,58.42314248]
[1754925191057,1e-08,178.01,178.0,62.89306998]
[1754925191446,10.0,178.09,178.03,26.0]
[1754925191661,10.0,178.09,178.08,9.65516496]
[1754925191864,30.0,178.09,178.08,52.11516496]
[1754925192082,10.03,178.1,178.08,52.11516496]
[1754925192259,0.03,178.1,178.09,9.65516496]
[1754925192784,0.03,178.1,178.09,10.32516496]
[1754925192982,0.03,178.1,178.09,15.94030337]
[1754925193483,0.03,178.12,178.09,15.94030337]
[1754925193788,0.03,178.12,178.11,9.65516496]
[1754925194890,0.03,178.12,178.11,15.26967284]
[1754925195078,0.03,178.12,178.11,15.93967284]
[1754925195272,0.03,178.12,178.11,5.61450788]
[1754925195478,0.03,178.12,178.09,9.65516496]
[1754925195706,0.41,178.12,178.1,42.38]
[1754925196016,0.03,178.12,178.11,9.65516496]
[1754925196975,0.03,178.12,178.11,15.93967284]
[1754925197489,0.03,178.12,178.11,41.93967284]
[1754925198391,0.03,178.12,178.11,83.60967284]
[1754925199098,0.03,178.12,178.11,41.26967284]
[1754925199514,0.03,178.12,178.11,83.58967284]
[1754925200690,0.03,178.12,178.11,57.58967284]
[1754925200933,0.03,178.12,178.11,58.25967284]
[1754925201426,0.03,178.12,178.11,31.61450788]
[1754925201594,0.03,178.12,178.11,83.52967284]
[1754925201798,0.03,178.12,178.11,47.87450788]
[1754925202211,0.03,178.12,178.11,57.52967284]
[1754925202614,0.03,178.12,178.11,58.19967284]
[1754925204624,1e-08,178.12,178.11,58.19967284]
[1754925206631,1e-08,178.12,178.11,15.93967284]
[1754925206934,1e-08,178.12,178.11,15.26967284]
[1754925207133,1e-08,178.12,178.11,57.40967284]
[1754925208332,0.03,178.14,178.13,26.0]
[1754925208522,0.03,178.14,178.13,78.47516496]
[1754925209605,0.03,178.14,178.13,84.08904246]
[1754925209806,1e-08,178.14,178.13,84.08904246]
[1754925212213,1e-08,178.14,178.13,41.94904246]
[1754925212435,1e-08,178.14,178.13,41.26904246]
[1754925212743,1e-08,178.14,178.13,83.28904246]
[1754925213250,1e-08,178.14,178.13,57.30904246]
[1754925213413,1e-08,178.14,178.13,47.6538775]
[1754925213614,20.03516497,178.14,178.09,9.65516496]
[1754925213919,10.00000001,178.14,178.12,9.65516496]
[1754925214126,1e-08,178.14,178.13,51.69516496]
[1754925214520,1e-08,178.14,178.13,52.37516496]
[1754925214832,1e-08,178.14,178.13,78.37516496]
[1754925215017,0.03,178.18,178.16,26.0]
[1754925215222,0.03,178.18,178.17,51.69516496]
[1754925215442,2.95600637,178.2,178.19,26.0]
[1754925215751,2.95600637,178.2,178.19,83.30715216]
[1754925215917,1e-08,178.2,178.19,94.20351584]
[1754925216114,1e-08,178.21,178.19,98.14816297]
[1754925216420,0.03,178.23,178.21,41.10621557]
[1754925216634,0.03,178.23,178.22,51.69516496]
[1754925216934,0.03,178.23,178.22,52.37516496]
[1754925217926,0.03,178.23,178.22,57.98620749]
[1754925220160,1e-08,178.23,178.22,57.98620749]
[1754925221171,1e-08,178.25,178.23,15.10621557]
[1754925221464,1e-08,178.25,178.24,92.68138053]
[1754925221627,1e-08,178.25,178.24,67.36138053]
[1754925222032,1e-08,178.25,178.24,72.97179345]
[1754925223631,1e-08,178.26,178.25,15.10621557]
[1754925223958,0.2,178.29,178.25,15.10621557]
[1754925223959,1e-08,178.29,178.28,26.0]
[1754925224264,0.2,178.34,178.28,83.10431909]
[1754925224559,0.2,178.34,178.33,9.65516496]
[1754925224756,0.2,178.34,178.33,51.49516496]
[1754925225446,0.2,178.34,178.33,41.84]
[1754925225644,0.2,178.34,178.33,51.49516496]
[1754925226148,0.2,178.34,178.33,57.10274641]
[1754925226635,0.2,178.34,178.33,15.26274641]
[1754925226966,0.2,178.34,178.33,57.06274641]
[1754925228143,0.15,178.36,178.35,26.0]
[1754925228350,10.53,178.36,178.35,51.47516496]
[1754925228539,10.53,178.36,178.35,51.45516496]
[1754925228856,10.53,178.36,178.35,9.65516496]
[1754925229039,10.53,178.36,178.35,51.45516496]
[1754925229438,10.0,178.34,178.33,9.65516496]
[1754925229642,10.38,178.34,178.33,41.78]
[1754925229971,10.0,178.35,178.33,51.43516496]
[1754925230263,0.15,178.36,178.34,9.65516496]
[1754925230449,0.15,178.36,178.35,51.41516496]
[1754925230954,10.15,178.36,178.35,51.41516496]
[1754925231359,0.15,178.36,178.35,51.41516496]
[1754925231555,0.15,178.36,178.35,57.02211758]
[1754925231866,0.15,178.36,178.35,57.70211758]
[1754925233661,0.15,178.36,178.35,57.02211758]
[1754925234773,0.15,178.36,178.35,57.70211758]
[1754925235074,0.15,178.36,178.35,56.94211758]
[1754925236261,0.15,178.36,178.35,51.33516496]
[1754925237456,10.53,178.36,178.35,51.33516496]
[1754925237650,10.0,178.34,178.3,9.65516496]
[1754925237854,10.0,178.32,178.31,41.62]
[1754925238151,20.03516496,178.32,178.31,41.62]
[1754925238355,10.0,178.28,178.22,14.70737613]
[1754925238668,19.65516496,178.28,178.23,56.88589267]
[1754925238873,10.0,178.28,178.26,26.0]
[1754925239071,10.38,178.28,178.27,41.62]
[1754925239258,10.38,178.28,178.23,5.61072771]
[1754925239259,10.0,178.27,178.23,5.61072771]
[1754925239462,10.59639517,178.28,178.23,5.61072771]
[1754925239463,0.38,178.26,178.23,15.26589267]
[1754925239764,10.38,178.26,178.23,31.61072771]
[1754925239981,10.0,178.24,178.22,9.65516496]
[1754925240274,10.38,178.24,178.23,41.6]
[1754925240444,14.07870995,178.24,178.23,41.6]
[1754925240862,14.07881567,178.24,178.23,41.6]
[1754925241065,10.0,178.19,178.17,9.65516496]
[1754925241271,10.0,178.19,178.18,41.64]
[1754925241557,10.0,178.2,178.18,51.29516496]
[1754925241760,10.0,178.2,178.18,56.90742422]
[1754925241969,10.0,178.19,178.18,9.65516496]
[1754925242266,10.0,178.19,178.18,51.29516496]
[1754925242871,10.0,178.2,178.18,51.29516496]
[1754925243074,10.0,178.19,178.18,56.90746712]
[1754925243279,10.0,178.22,178.18,57.55746712]
[1754925243593,10.0,178.22,178.2,9.65516496]
[1754925243767,10.0,178.22,178.21,51.27516496]
[1754925244180,140.0,178.23,178.21,51.92516496]
[1754925244358,140.0,178.23,178.22,9.65516496]
[1754925244962,10.0,178.23,178.22,9.65516496]
[1754925245163,10.0,178.24,178.22,15.26616231]
[1754925245368,10.0,178.24,178.23,41.6]
[1754925245571,10.0,178.24,178.23,51.25516496]
[1754925245981,10.0,178.24,178.23,41.6]
[1754925246157,10.38,178.24,178.23,41.6]
[1754925246361,10.0,178.2,178.18,0.06]
[1754925246579,10.0,178.19,178.18,0.06]
[1754925246768,10.0,178.19,178.18,51.31516496]
[1754925246964,10.0,178.21,178.18,56.92746712]
[1754925247173,10.0,178.19,178.18,47.27230216]
[1754925247374,10.0,178.21,178.18,47.92230216]
[1754925247580,10.0,178.21,178.19,0.65]
[1754925247880,10.0,178.21,178.2,41.58]
[1754925248074,10.0,178.24,178.2,42.23]
[1754925248270,10.0,178.24,178.23,9.65516496]
[1754925248483,10.0,178.24,178.23,51.21516496]
[1754925248984,10.0,178.24,178.23,41.56]
[1754925249187,10.0,178.24,178.23,51.21516496]
[1754925249583,10.0,178.24,178.23,56.82589267]
[1754925249898,10.0,178.26,178.23,57.47589267]
[1754925250083,10.0,178.26,178.25,9.65516496]
[1754925250393,40.0,178.26,178.25,41.54]
[1754925250577,40.0,178.26,178.25,51.19516496]
[1754925250982,10.0,178.26,178.25,51.19516496]
[1754925252574,10.0,178.27,178.25,51.19516496]
[1754925252784,10.0,178.26,178.25,51.19516496]
[1754925254092,10.0,178.27,178.25,56.80526313]
[1754925254271,150.0,178.28,178.26,9.65516496]
[1754925254474,202.06935373,178.32,178.27,57.41463374]
[1754925254475,10.0,178.29,178.27,57.41463374]
[1754925254690,10.0,178.29,178.28,9.65516496]
[1754925254888,10.0,178.29,178.27,41.5]
[1754925255194,10.0,178.29,178.28,9.65516496]
[1754925256992,10.0,178.29,178.28,15.91431909]
[1754925257505,10.0,178.29,178.28,10.30516496]
[1754925257671,10.0,178.29,178.28,9.65516496]
[1754925257997,10.0,178.29,178.28,15.26431909]
[1754925258181,10.0,178.29,178.28,15.91431909]
[1754925258789,10.0,178.29,178.28,10.30516496]
[1754925258994,10.0,178.29,178.28,15.91431909]
[1754925259175,10.0,178.29,178.28,10.30516496]
[1754925259370,10.0,178.29,178.28,9.65516496]
[1754925260097,10.0,178.29,178.27,41.5]
[1754925260098,10.0,178.27,178.25,35.65516496]
[1754925260289,10.0,178.28,178.26,41.38]
[1754925260493,10.0,178.28,178.26,51.03516496]
[1754925260807,10.0,178.27,178.26,41.38]
[1754925261186,10.0,178.27,178.23,31.61062493]
[1754925261494,10.0,178.26,178.24,41.36]
[1754925261906,10.0,178.26,178.25,9.65516496]
[1754925264609,10.0,178.24,178.22,0.65]
[1754925264780,10.0,178.24,178.23,50.99516496]
[1754925265104,10.0,178.24,178.23,51.64516496]
[1754925267004,10.0,178.24,178.23,50.99516496]
[1754925267394,10.0,178.24,178.23,51.64516496]
[1754925267791,10.0,178.24,178.23,41.34]
[1754925267995,10.0,178.24,178.23,50.99516496]
[1754925268885,10.0,178.24,178.23,51.68516496]
[1754925269594,10.0,178.24,178.23,57.29589267]
[1754925269797,10.0,178.24,178.23,57.35589267]
[1754925270191,10.0,178.24,178.23,53.71218328]
[1754925271086,150.0,178.26,178.23,53.71218328]
[1754925271292,10.0,178.24,178.23,47.01072771]
[1754925271490,10.0,178.24,178.23,53.02218328]
[1754925271893,10.0,178.24,178.23,53.71218328]
[1754925272097,140.0,178.26,178.23,53.71218328]
[1754925272098,10.0,178.26,178.23,53.71218328]
[1754925272312,10.0,178.25,178.24,0.69]
[1754925272486,10.0,178.25,178.24,6.70145557]
[1754925273395,10.0,178.26,178.24,6.70145557]
[1754925273709,10.0,178.24,178.23,0.06]
[1754925273917,10.0,178.24,178.23,41.4]
[1754925274214,10.38,178.24,178.23,0.06]
[1754925274389,10.94123021,178.24,178.23,41.4]
[1754925275412,10.56123021,178.24,178.23,47.41145557]
[1754925275713,10.0,178.24,178.23,47.41145557]
[1754925276513,15.61041292,178.24,178.23,41.4]
[1754925276809,19.71600326,178.24,178.23,41.4]
[1754925276989,19.89723347,178.24,178.23,41.4]
[1754925277403,13.72559034,178.24,178.23,41.4]
[1754925277705,10.0,178.24,178.23,41.4]
[1754925278009,10.0,178.24,178.23,48.10145557]
[1754925278209,0.56123021,178.27,178.23,53.71218328]
[1754925278210,10.0,178.25,178.23,53.71218328]
[1754925278400,10.0,178.25,178.24,6.70145557]
[1754925278601,10.0,178.27,178.26,26.0]
[1754925278794,10.0,178.27,178.26,74.04145557]
[1754925279911,10.0,178.28,178.26,79.65123903]
[1754925280109,10.0,178.28,178.27,6.01145557]
[1754925280312,10.0,178.28,178.27,6.70145557]
[1754925280518,10.0,178.28,178.27,6.01145557]
[1754925281618,10.0,178.27,178.26,72.94978346]
[1754925281818,10.0,178.27,178.26,79.65123903]
[1754925282497,10.0,178.28,178.26,79.65123903]
[1754925282792,10.0,178.28,178.27,6.70145557]
[1754925283197,10.0,178.31,178.27,6.70145557]
[1754925283408,10.0,178.32,178.3,6.01145557]
[1754925283615,10.0,178.32,178.31,48.04145557]
[1754925283819,13.73908048,178.32,178.31,53.64966599]
[1754925284203,10.0,178.33,178.31,53.64966599]
[1754925284390,10.0,178.33,178.32,6.70145557]
[1754925284597,0.03,178.34,178.32,6.70145557]
[1754925284915,0.03,178.34,178.33,48.02145557]
[1754925286002,0.03,178.34,178.33,53.62903702]
[1754925288221,0.03,178.34,178.33,57.22161714]
[1754925288722,0.03,178.34,178.33,47.61758145]
[1754925288896,0.03,178.34,178.33,57.22161714]
[1754925289910,0.03,178.34,178.33,50.92403569]
[1754925290132,0.03,178.34,178.33,56.53161714]
[1754925290308,0.03,178.34,178.33,57.22161714]
[1754925291423,0.03,178.34,178.33,56.53161714]
[1754925292099,0.03,178.34,178.33,57.22161714]
[1754925294419,0.15,178.36,178.35,26.0]
[1754925294622,0.03,178.38,178.35,77.59403569]
[1754925294919,0.03,178.4,178.37,9.60403569]
[1754925295123,0.03,178.4,178.39,9.60403569]
[1754925295424,0.03,178.4,178.39,50.90403569]
[1754925295815,0.03,178.4,178.39,51.59403569]
[1754925296134,0.03,178.4,178.39,83.19973107]
[1754925297295,0.03,178.4,178.39,15.89973107]
[1754925297709,0.03,178.4,178.39,83.19973107]
[1754925300099,0.03,178.4,178.39,98.30594664]
[1754925300297,0.03,178.4,178.39,72.30594664]
[1754925300516,0.03,178.44,178.43,9.60403569]
[1754925300696,10.03,178.44,178.43,50.88403569]